[Event "*** Titled Tuesday Blitz"]
[Site "Chess.com"]
[Date "2020.05.05"]
[Round "10"]
[White "dopolian"]
[Black "PauloCesarCosta_sad"]
[Result "1-0"]
[WhiteElo "2396"]
[BlackElo "2208"]
[TimeControl "180+1"]
[EndTime "12:02:05 PDT"]
[Termination "dopolian won on time"]

1. e4 {[%clk 0:03:00.9]} 1... e6 {[%clk 0:03:00.1]} 2. d4 {[%clk 0:02:59.2]}
2... d5 {[%clk 0:03:00.6]} 3. Nd2 {[%clk 0:02:58.3]} 3... Nf6 {[%clk 0:03:00.7]}
4. e5 {[%clk 0:02:58.7]} 4... Nfd7 {[%clk 0:03:00.8]} 5. Ngf3 {[%clk 0:02:57.6]}
5... c5 {[%clk 0:03:01.1]} 6. c3 {[%clk 0:02:58]} 6... Nc6 {[%clk 0:03:01.2]} 7.
Bd3 {[%clk 0:02:57.9]} 7... Qb6 {[%clk 0:03:00.8]} 8. dxc5 {[%clk 0:02:53.6]}
8... Nxc5 {[%clk 0:02:56.6]} 9. Bc2 {[%clk 0:02:53]} 9... Be7 {[%clk 0:02:53.1]}
10. O-O {[%clk 0:02:52.5]} 10... O-O {[%clk 0:02:22.2]} 11. Nb3 {[%clk
0:02:45.3]} 11... Bd7 {[%clk 0:02:14.2]} 12. Be3 {[%clk 0:02:42.3]} 12... f6
{[%clk 0:02:05.1]} 13. exf6 {[%clk 0:02:39.7]} 13... gxf6 {[%clk 0:01:55.7]} 14.
Qd4 {[%clk 0:02:23.6]} 14... Nxd4 {[%clk 0:01:49.8]} 15. Bxd4 {[%clk 0:02:21.5]}
15... e5 {[%clk 0:01:43.5]} 16. Be3 {[%clk 0:02:20.6]} 16... Qc6 {[%clk
0:01:36.8]} 17. Nbd2 {[%clk 0:02:15.1]} 17... Kh8 {[%clk 0:01:30.3]} 18. Rac1
{[%clk 0:02:08.6]} 18... Rac8 {[%clk 0:01:21.5]} 19. h3 {[%clk 0:02:03.4]} 19...
Be6 {[%clk 0:01:21.2]} 20. b3 {[%clk 0:01:49.3]} 20... a5 {[%clk 0:01:21.1]} 21.
Rfe1 {[%clk 0:01:41.5]} 21... b6 {[%clk 0:01:21]} 22. Kh1 {[%clk 0:01:37.7]}
22... Qd7 {[%clk 0:01:17.4]} 23. Bb1 {[%clk 0:01:30.3]} 23... Bf5 {[%clk
0:01:17.2]} 24. Red1 {[%clk 0:01:12.9]} 24... Bxb1 {[%clk 0:01:16.1]} 25. Nxb1
{[%clk 0:01:13.4]} 25... Qf5 {[%clk 0:01:08.1]} 26. Rxd5 {[%clk 0:01:07.9]}
26... Rfd8 {[%clk 0:01:07.1]} 27. Rxd8+ {[%clk 0:00:54.9]} 27... Rxd8 {[%clk
0:01:06.7]} 28. Nbd2 {[%clk 0:00:55.8]} 28... Nd3 {[%clk 0:01:01.8]} 29. Rf1
{[%clk 0:00:47.7]} 29... Bc5 {[%clk 0:01:01.3]} 30. Bxc5 {[%clk 0:00:41]} 30...
Nxc5 {[%clk 0:01:00.8]} 31. Nc4 {[%clk 0:00:41.9]} 31... Rb8 {[%clk 0:00:52.7]}
32. Ne3 {[%clk 0:00:34.2]} 32... Qd3 {[%clk 0:00:49.1]} 33. c4 {[%clk
0:00:28.5]} 33... a4 {[%clk 0:00:45.9]} 34. Rd1 {[%clk 0:00:25.9]} 34... Qe2
{[%clk 0:00:41.7]} 35. Rd2 {[%clk 0:00:22.4]} 35... Qxd2 {[%clk 0:00:27.5]} 36.
Nxd2 {[%clk 0:00:23.3]} 36... axb3 {[%clk 0:00:27.9]} 37. axb3 {[%clk 0:00:24]}
37... Rd8 {[%clk 0:00:27]} 38. Nd5 {[%clk 0:00:23.7]} 38... Kg7 {[%clk 0:00:23]}
39. b4 {[%clk 0:00:23.4]} 39... Nd3 {[%clk 0:00:21.6]} 40. Ne4 {[%clk
0:00:19.3]} 40... Nb2 {[%clk 0:00:14.2]} 41. Nxb6 {[%clk 0:00:16.7]} 41... Rd1+
{[%clk 0:00:11.7]} 42. Kh2 {[%clk 0:00:16.6]} 42... Rc1 {[%clk 0:00:10]} 43. c5
{[%clk 0:00:13.8]} 43... Nd3 {[%clk 0:00:09.8]} 44. Nd5 {[%clk 0:00:12.5]} 44...
Rc4 {[%clk 0:00:07.1]} 45. Nexf6 {[%clk 0:00:07.2]} 45... Nxb4 {[%clk
0:00:07.2]} 46. Nxb4 {[%clk 0:00:07.3]} 46... Rxb4 {[%clk 0:00:06.9]} 47. Nd7
{[%clk 0:00:05.4]} 47... e4 {[%clk 0:00:06.2]} 48. Kg3 {[%clk 0:00:04.8]} 48...
Rd4 {[%clk 0:00:05.3]} 49. Ne5 {[%clk 0:00:03.8]} 49... Rd5 {[%clk 0:00:05]} 50.
Kf4 {[%clk 0:00:03.8]} 50... Rxc5 {[%clk 0:00:04.7]} 51. Kxe4 {[%clk 0:00:04.7]}
51... Rc2 {[%clk 0:00:04.4]} 52. Nd3 {[%clk 0:00:04.9]} 52... Rc4+ {[%clk
0:00:03.6]} 53. Ke3 {[%clk 0:00:04.9]} 53... Ra4 {[%clk 0:00:04]} 54. g4 {[%clk
0:00:05.1]} 54... Ra3 {[%clk 0:00:04.2]} 55. Ke4 {[%clk 0:00:03.9]} 55... h6
{[%clk 0:00:04.5]} 56. h4 {[%clk 0:00:03.5]} 56... Ra4+ {[%clk 0:00:04.9]} 57.
Kf3 {[%clk 0:00:03.5]} 57... Ra3 {[%clk 0:00:05.3]} 58. Ke3 {[%clk 0:00:04]}
58... Ra4 {[%clk 0:00:05.3]} 59. f3 {[%clk 0:00:04.5]} 59... Ra3 {[%clk
0:00:05.2]} 60. Ke2 {[%clk 0:00:05]} 60... Ra2+ {[%clk 0:00:05.2]} 61. Ke3
{[%clk 0:00:05.5]} 61... Ra3 {[%clk 0:00:05.7]} 62. Ke4 {[%clk 0:00:05.4]} 62...
Ra4+ {[%clk 0:00:05.9]} 63. Kf5 {[%clk 0:00:05.7]} 63... Ra5+ {[%clk 0:00:05.9]}
64. Kf4 {[%clk 0:00:05.7]} 64... Ra4+ {[%clk 0:00:05.9]} 65. Kg3 {[%clk
0:00:06.1]} 65... Ra3 {[%clk 0:00:06]} 66. Nf4 {[%clk 0:00:06.6]} 66... Ra4
{[%clk 0:00:05.8]} 67. g5 {[%clk 0:00:06.3]} 67... hxg5 {[%clk 0:00:04.8]} 68.
hxg5 {[%clk 0:00:06.8]} 68... Ra5 {[%clk 0:00:04.7]} 69. Kg4 {[%clk 0:00:07]}
69... Ra1 {[%clk 0:00:04.5]} 70. Nh5+ {[%clk 0:00:04.5]} 70... Kg6 {[%clk
0:00:04]} 71. Nf4+ {[%clk 0:00:05.2]} 71... Kg7 {[%clk 0:00:03.4]} 72. Nh3
{[%clk 0:00:05.2]} 72... Ra4+ {[%clk 0:00:03.3]} 73. f4 {[%clk 0:00:05.2]} 73...
Ra1 {[%clk 0:00:04.2]} 74. Nf2 {[%clk 0:00:05.3]} 74... Rg1+ {[%clk 0:00:03.6]}
75. Kf5 {[%clk 0:00:05.4]} 75... Rf1 {[%clk 0:00:04.5]} 76. Ng4 {[%clk
0:00:05.7]} 76... Ra1 {[%clk 0:00:03.9]} 77. Ne5 {[%clk 0:00:05.8]} 77... Ra5
{[%clk 0:00:03.5]} 78. g6 {[%clk 0:00:05.6]} 78... Rb5 {[%clk 0:00:02.8]} 79.
Kg5 {[%clk 0:00:05.2]} 79... Ra5 {[%clk 0:00:02.6]} 80. Kf5 {[%clk 0:00:03.8]}
80... Rb5 {[%clk 0:00:02.6]} 81. Ke4 {[%clk 0:00:03.7]} 81... Rb4+ {[%clk
0:00:02.5]} 82. Kf3 {[%clk 0:00:01.7]} 82... Rb3+ {[%clk 0:00:02.4]} 83. Kg4
{[%clk 0:00:02]} 83... Rb1 {[%clk 0:00:02.7]} 84. Kf5 {[%clk 0:00:02.2]} 84...
Rg1 {[%clk 0:00:03.1]} 85. Ke4 {[%clk 0:00:02.5]} 85... Ra1 {[%clk 0:00:03.4]}
86. f5 {[%clk 0:00:02.2]} 86... Ra4+ {[%clk 0:00:03.9]} 87. Ke3 {[%clk
0:00:02.6]} 87... Ra3+ {[%clk 0:00:04]} 88. Kf4 {[%clk 0:00:02.6]} 88... Ra4+
{[%clk 0:00:04.4]} 89. Kg5 {[%clk 0:00:03.1]} 89... Ra1 {[%clk 0:00:05.2]} 90.
f6+ {[%clk 0:00:03.4]} 90... Kg8 {[%clk 0:00:05.2]} 91. f7+ {[%clk 0:00:03.1]}
91... Kf8 {[%clk 0:00:05.2]} 92. Nd7+ {[%clk 0:00:03]} 92... Ke7 {[%clk
0:00:05.8]} 93. f8=Q+ {[%clk 0:00:03.9]} 93... Kxd7 {[%clk 0:00:06.1]} 94. Qf7+
{[%clk 0:00:04.8]} 94... Kc6 {[%clk 0:00:05.5]} 95. Qf6+ {[%clk 0:00:05.7]}
95... Kc5 {[%clk 0:00:05]} 96. Qxa1 {[%clk 0:00:06.6]} 96... Kd5 {[%clk
0:00:05.1]} 97. g7 {[%clk 0:00:07.5]} 97... Ke4 {[%clk 0:00:05.5]} 98. g8=Q
{[%clk 0:00:08.4]} 98... Ke3 {[%clk 0:00:06.4]} 99. Qg6 {[%clk 0:00:09.1]} 99...
Ke2 {[%clk 0:00:07.3]} 100. Qf5 {[%clk 0:00:10]} 100... Ke3 {[%clk 0:00:08.2]}
101. Qae5+ {[%clk 0:00:09.5]} 101... Kd2 {[%clk 0:00:07.4]} 102. Qff4+ {[%clk
0:00:10.1]} 102... Kc2 {[%clk 0:00:08.3]} 103. Qfd4 {[%clk 0:00:10.6]} 103...
Kb3 {[%clk 0:00:09.2]} 104. Qec5 {[%clk 0:00:11.4]} 1-0